Cogmind - Beta 12 @@@ ROGUE MODE // 2023.04.29 @ 21:07:01 Player: Exp. Geonium Core Result: Destroyed by Enhanced Grunt with Neutron Cannon Performance ------------- Evolutions (3) 1500 Regions Visited (16) 3200 Robots Destroyed (136) 680 Value Destroyed (4808) 4808 Prototype IDs (216) 4320 Alien Tech Used (0) 0 Bonus (4254) 4254 TOTAL SCORE: 18762 Bonus ------- High Alert Combat Kills 85 Follower Combat Kills 356 Entered Garrisons 600 Used RIF Installer 1500 Met Data Miner 300 Used Data Conduit 3000 Friendly Fire -1587 Cogmind --------- Core Integrity 0/700 Matter 190/300 Energy 147/150 System Corruption 2% Temperature Cool (0) Movement Core (1500) Ox29 Location -7/Data Miner Parts ------- > --- POWER (1) -------- Micro Nuclear Core > --- PROPULSION (4) --- Improved Titanium Leg Improved Titanium Leg > --- UTILITY (6) ------ Improved Heat Sink Huge Storage Unit Targeting Computer > --- WEAPON (2) ------- Scythe > --- INVENTORY (25) --- Improved Titanium Leg Armored Wheel Armored Huge Wheel Relay Coupler [Grunt] (26) Relay Coupler [Brawler] (31) Relay Coupler [Duelist] (22) Relay Coupler [Demolisher] (22) Relay Coupler [Specialist] (22) Relay Coupler [Hunter] (12) Flak Gun Gauss Cannon Improved Grenade Launcher Improved Grenade Launcher Improved Grenade Launcher Datajack Improved Datajack Plasma Cutter Great Maul Peak State ------------ > --- POWER ------------ Heavy Deuterium Engine > --- PROPULSION ------- Improved Titanium Leg Improved Titanium Leg Armored Huge Wheel > --- UTILITY ---------- Improved Heat Sink Huge Storage Unit Improved Medium Armor Plating Hacking Suite Relay Coupler [NC] Relay Coupler [Swarmer] > --- WEAPON ----------- Plasma Cannon Makeshift Sword > --- INVENTORY -------- Light Deuterium Engine Micro Nuclear Core Light Treads Light Treads Improved Titanium Leg Improved Titanium Leg Improved Titanium Leg Improved Titanium Leg Relay Coupler [Grunt] Relay Coupler [Brawler] Relay Coupler [Duelist] Relay Coupler [Demolisher] Relay Coupler [Specialist] Relay Coupler [Hunter] Flak Gun Gauss Cannon Improved Grenade Launcher Improved Grenade Launcher Improved Grenade Launcher Datajack Datajack Improved Datajack Plasma Cutter Great Maul Scythe [Rating: 51] Favorites ----------- Power Nuclear Core Engine Reinforced Ion Engine Power Core Nuclear Core Propulsion Light Treads Treads Light Treads Leg Aluminum Leg Wheel Wheel Hover Unit Backup Propulsion III Utility Huge Storage Unit Device Improved Heat Sink Storage Huge Storage Unit Processor Advanced Visual Processing Unit Hackware Relay Coupler [Grunt] Protection Light Armor Plating Weapon Scythe Energy Gun Small Laser Energy Cannon Plasma Cannon Ballistic Gun Shotgun Ballistic Cannon Assault Cannon Launcher Improved Grenade Launcher Special Weapon Plasma Cutter Impact Weapon Great Maul Slashing Weapon Scythe Special Melee Weapon Improved Datajack Build | -11 -10 -10 -9 -9 -9 -8 -8 -8 -8 -8 -7 -7 -7 -7 -7 -7 ------- Run | Jun Mat Min Mat Min Exi Min Mat Gar Mat Gar Fac Gar Fac Low Low Dat Slots Evolved 6 | . . . 2 . . . 2 . . . 2 . . . . . Power . | . . . . . . . . . . . . . . . . . Propulsion 2 | . . . 1 . . . 1 . . . . . . . . . Utility 4 | . . . 1 . . . 1 . . . 2 . . . . . Weapon . | . . . . . . . . . . . . . . . . . Parts Attached 154 | . 6 2 21 6 . 3 10 24 1 9 9 13 17 16 6 11 Power 10 | . 1 . 2 . . 1 1 2 . . 1 . . 1 . 1 Engine 5 | . . . 2 . . . . 1 . . 1 . . 1 . . Core 5 | . 1 . . . . 1 1 1 . . . . . . . 1 Reactor . | . . . . . . . . . . . . . . . . . Propulsion 57 | . 2 1 8 5 . . 3 9 . 3 2 6 5 4 4 5 Treads 24 | . . . 7 3 . . 2 7 . . . . . 2 . 3 Leg 19 | . . . . . . . . . . 3 . 6 4 . 4 2 Wheel 14 | . 2 1 1 2 . . 1 2 . . 2 . 1 2 . . Hover . | . . . . . . . . . . . . . . . . . Flight . | . . . . . . . . . . . . . . . . . Utility 41 | . 1 1 4 . . . 4 6 1 4 2 3 8 4 2 1 Device 13 | . . 1 . . . . 2 3 . 2 . . 1 2 1 1 Storage 1 | . 1 . . . . . . . . . . . . . . . Processor 4 | . . . 1 . . . . . . . 1 . . 2 . . Hackware 10 | . . . . . . . . . 1 1 1 3 4 . . . Protection 13 | . . . 3 . . . 2 3 . 1 . . 3 . 1 . Artifact . | . . . . . . . . . . . . . . . . . Weapon 46 | . 2 . 7 1 . 2 2 7 . 2 4 4 4 7 . 4 Energy Gun 3 | . . . 2 . . . . . . . . . . . . 1 Energy Cannon 1 | . . . . . . . . . . . . . 1 . . . Ballistic Gun 10 | . 2 . . . . 2 . 3 . . 1 . . 2 . . Ballistic Cannon 7 | . . . . . . . 1 1 . . 2 . . 2 . 1 Launcher 3 | . . . . 1 . . . . . . . 1 . 1 . . Special Weapon 1 | . . . 1 . . . . . . . . . . . . . Impact Weapon 3 | . . . 1 . . . . . . . . 2 . . . . Slashing Weapon 14 | . . . 3 . . . 1 3 . 1 . 1 1 2 . 2 Piercing Weapon . | . . . . . . . . . . . . . . . . . Special Melee Weapon 4 | . . . . . . . . . . 1 1 . 2 . . . Unidentified Prototypes 1 | . . 1 . . . . . . . . . . . . . . Parts Lost 62 | . . . 8 6 . 2 3 17 . 5 . 3 1 6 2 9 Power 5 | . . . . . . 1 1 1 . . . . . 1 . 1 Propulsion 29 | . . . 3 4 . . 1 8 . 3 . 3 . 1 2 4 Utility 17 | . . . 1 1 . 1 1 5 . 2 . . 1 3 . 2 Weapon 11 | . . . 4 1 . . . 3 . . . . . 1 . 2 Highest Loss Streak 9 | . . . 4 3 . 1 2 8 . 2 . 2 1 6 2 9 To Critical Strikes . | . . . . . . . . . . . . . . . . . Average Slot Usage (%) 90 | . 85 85 94 88 77 70 87 91 100 94 90 96 98 77 94 87 Engine 5 | . 12 . 9 11 11 6 . 2 . . 2 7 7 6 7 5 Core 3 | . 1 14 1 . . 3 8 6 9 9 4 . . . . . Treads 14 | . . . 24 27 11 11 16 22 36 16 7 4 . 9 7 5 Leg 8 | . 12 . . . . . . . . 15 12 18 27 5 14 23 Wheel 7 | . 15 28 8 5 22 22 18 11 . . 9 1 1 6 3 . Device 8 | . . . . . . . 12 15 9 13 15 2 . 15 16 15 Storage 9 | . 14 14 11 11 11 11 9 9 9 9 7 7 7 7 7 7 Processor 3 | . . . 8 3 . . . . . . 3 7 2 . 15 12 Hackware 6 | . . . . . . . . . 8 9 9 26 29 6 . . Protection 5 | . . . 9 11 11 . 4 6 9 4 . . 4 2 5 6 Ballistic Gun 2 | . 17 28 2 . . 8 15 1 . . . . . . . . Ballistic Cannon 2 | . . . . . . . 1 9 9 2 2 7 2 1 . . Launcher 1 | . . . . 5 . . . . . . . 2 . 2 6 . Slashing Weapon 6 | . . . 13 12 11 6 . 6 9 9 4 . . 5 7 6 Special Melee Weapon 1 | . . . . . . . . . . 6 7 1 3 . . . Naked Turns . | . . . . . . . . . . . . . . . . . Heaviest Build 115 | 10 87 88 99 99 97 97 98 102 101 98 101 104 109 108 115 114 Greatest Support 80 | 20 24 24 60 60 20 20 26 80 80 80 30 40 70 40 80 80 Greatest Overweight (x) 10 | . 3 7 7 4 4 4 4 6 1 4 9 10 3 3 4 2 Average Overweight (x) 2 | . 1 3 1 2 4 4 3 4 1 2 4 4 1 2 2 1 Largest Inventory Capacity 25 | . 25 25 25 25 25 25 25 25 25 25 25 25 25 25 25 25 Average Capacity 24 | . 17 25 25 25 25 25 25 25 25 25 25 25 25 25 25 25 Most Carried 25 | . 9 10 25 25 24 24 25 24 25 25 25 25 25 25 25 25 Average Carried 22 | . 7 9 19 22 23 23 24 20 24 24 24 24 23 22 23 24 Final Capacity 25 | 8 25 25 25 25 25 25 25 25 25 25 25 25 25 25 25 25 Final Carried 25 | 6 9 9 25 21 24 22 24 23 25 25 25 24 25 22 25 19 Class Distribution -------------------- 45% | Bothacker-Mutant 30% | Scavenger-Mutant 23% | Mutant Dominant Class ---------------- Mutant | -10/Materials Mutant | -10/Mines Scavenger-Mutant | -9/Materials Mutant | -9/Mines Mutant | -9/Exiles Mutant | -8/Mines Scavenger-Mutant | -8/Materials Scavenger-Mutant | -8/Garrison Scavenger-Mutant | -8/Materials Bothacker-Mutant | -8/Garrison Bothacker-Mutant | -7/Factory Bothacker-Mutant | -7/Garrison Bothacker-Mutant | -7/Factory Bothacker-Mutant | -7/Lower Caves Bothacker-Mutant | -7/Lower Caves Bothacker-Mutant | -7/Data Miner Resources | -11 -10 -10 -9 -9 -9 -8 -8 -8 -8 -8 -7 -7 -7 -7 -7 -7 ----------- Run | Jun Mat Min Mat Min Exi Min Mat Gar Mat Gar Fac Gar Fac Low Low Dat Matter Collected 3244 | 190 108 22 203 138 . 118 601 709 48 100 135 193 231 180 199 69 Remotely . | . . . . . . . . . . . . . . . . . Salvage Created 4630 | . 231 . 1019 215 . 75 903 572 58 208 130 280 219 420 159 141 Parts 226 | . 16 . 51 18 . 6 49 26 4 3 6 9 8 18 9 3 Haulers Intercepted 4 | . . . 2 . . . 2 . . . . . . . . . Recyclers Shooed 3 | . . . 1 . . . 2 . . . . . . . . . Parts Field Recycled . | . . . . . . . . . . . . . . . . . Retrieved Matter . | . . . . . . . . . . . . . . . . . Parts Self-Destructed 17 | . . . . . . . . . . . . . . 11 6 . Prevented . | . . . . . . . . . . . . . . . . . Kills | -11 -10 -10 -9 -9 -9 -8 -8 -8 -8 -8 -7 -7 -7 -7 -7 -7 ------- Run | Jun Mat Min Mat Min Exi Min Mat Gar Mat Gar Fac Gar Fac Low Low Dat Combat Hostiles Destroyed 117 | . 8 . 15 13 . 6 14 30 1 3 1 6 3 6 9 2 Melee 17 | . . . 9 1 . 3 . . 1 . . . . 1 . 2 Guns 32 | . 8 . 5 . . 3 9 6 . . . . . 1 . . Cannons 37 | . . . . . . . 5 24 . 3 1 1 3 . . . AOE 30 | . . . . 12 . . . . . . . 5 . 4 9 . Classes Destroyed 19 | . 3 . 8 . . . 1 1 . . . 1 1 3 1 . Worker 5 | . . . 2 1 . . . . . . 1 . 1 . . . Builder 3 | . . . 2 . . . . . . . . . 1 . . . Tunneler 2 | . . . 1 . . . 1 . . . . . . . . . Hauler 4 | . . . 2 . . . 2 . . . . . . . . . Recycler 8 | . 1 . 1 1 . . 4 . . . 1 . . . . . Mechanic 1 | . . . . . . . . . . . . 1 . . . . Operator 2 | . . . 1 . . . 1 . . . . . . . . . Watcher 1 | . . . . . . . 1 . . . . . . . . . Swarmer 38 | . 6 . . 9 . 6 2 7 . . . . . 4 4 . Grunt 46 | . 2 . 11 3 . . 9 5 . 5 . 6 . 1 4 . Brawler 4 | . . . 1 1 . . . 2 . . . . . . . . Duelist 1 | . . . 1 . . . . . . . . . . . . . Sentry 15 | . . . 2 . . . 3 4 1 . 1 1 2 1 . . Hunter 1 | . . . . . . . . . . . . . . . 1 . Programmer 1 | . . . . . . . . . . . . . 1 . . . Behemoth 1 | . . . . . . . . . . . . . . 1 . . Enhanced Grunt 2 | . . . . . . . . . . . . . . . . 2 Decomposer 1 | . . . . . . . . . . . . . . 1 . . Samaritan 2 | . . . . . . . . . . . . . . 2 . . Assembled 12 | . . . . . . . . 12 . . . . . . . . Mutant 1 | . . . . . . . . . . . . . . 1 . . Best Kill Streak 7 | . 3 . 4 4 . 3 7 6 1 3 2 5 1 4 4 1 Combat Bots Only 6 | . 3 . 3 3 . 3 4 6 1 3 1 5 1 4 4 1 Max Kills in Single Turn 3 | . 1 . 1 3 . 1 1 2 1 1 1 3 1 3 3 1 Gunslinging . | . . . . . . . . . . . . . . . . . Exploded 3 | . . . . 3 . . . . . . . 3 . 3 3 . Melee 1 | . . . 1 1 . 1 . . 1 . . . . 1 . 1 Uniques/NPCs Destroyed . | . . . . . . . . . . . . . . . . . Combat | -11 -10 -10 -9 -9 -9 -8 -8 -8 -8 -8 -7 -7 -7 -7 -7 -7 -------- Run | Jun Mat Min Mat Min Exi Min Mat Gar Mat Gar Fac Gar Fac Low Low Dat Damage Taken 9621 | . 366 34 1255 892 . 234 624 1901 73 414 275 519 432 1055 311 1236 Core 1543 | . 94 7 155 155 . 58 63 256 30 16 66 149 58 127 36 273 Absorbed by Shields 37 | . . . . . . . . 37 . . . . . . . . Redirected to Shielding 16 | . . . 16 . . . . . . . . . . . . . Regen/Repaired (Parts) 166 | . . . . . . . . . . . 82 84 . . . . Core Remaining (%) 50 | 100 . 59 . . . 8 . . . 33 . . . . . . Volleys Fired 292 | . 29 1 24 11 . 5 54 88 1 7 9 14 12 19 14 4 Largest 2 | . 2 2 2 1 . 2 2 2 1 1 1 1 1 2 1 2 Hottest 128 | . 80 40 90 30 . 46 67 67 44 44 44 48 80 128 36 117 Shots Fired 427 | . 58 2 37 12 . 10 108 115 1 7 9 14 12 22 15 5 Gun 221 | . 58 2 34 . . 10 87 27 . . . . . 2 . 1 Cannon 168 | . . . . . . . 21 88 1 7 9 8 12 18 . 4 Launcher 35 | . . . . 12 . . . . . . . 6 . 2 15 . Special 3 | . . . 3 . . . . . . . . . . . . . Kinetic 317 | . 38 2 8 . . 10 108 115 1 7 9 8 3 4 . 4 Thermal 75 | . 20 . 29 . . . . . . . . . 9 16 . 1 Explosive 35 | . . . . 12 . . . . . . . 6 . 2 15 . Electromagnetic . | . . . . . . . . . . . . . . . . . Robot Hit Streak 23 | . 6 8 23 3 . 5 11 10 . 11 11 7 6 11 2 7 Robot Miss Streak 8 | . 3 . 1 2 . 3 8 6 . 1 . 1 1 2 . . Penetration Max 1 | . . . . . . . . . . . . . . . . 1 Secondary Targets 5 | . 2 . 1 . . 1 1 . . . . . . . . . Max Gunslinging Chain 1 | . 1 . 1 . . 1 1 . . . . . . . . . Shots Hit Robots 399 | . 33 2 67 9 . 12 77 73 1 14 15 20 19 31 2 24 Core Hits 226 | . 17 1 25 17 . 6 53 39 1 5 4 10 4 16 19 9 Critical Kills 1 | . . . 1 . . . . . . . . . . . . . Critical Parts Destroyed 2 | . 1 . . . . . . . . . . . 1 . . . Critical Strikes 18 | . 1 . 5 . . . . 2 . 4 . . 1 1 . 4 Burn 3 | . . . 2 . . . . . . . . . . . . 1 Destroy 1 | . 1 . . . . . . . . . . . . . . . Blast 5 | . . . . . . . . 2 . 2 . . . . . 1 Smash 2 | . . . 1 . . . . . . . . . 1 . . . Sever 7 | . . . 2 . . . . . . 2 . . . 1 . 2 Melee Attacks 225 | . . . 42 7 . 8 3 37 2 28 7 14 13 14 3 47 Impact 24 | . . . 13 . . . . . . . . 6 5 . . . Slashing 183 | . . . 29 7 . 8 3 37 2 24 2 7 . 14 3 47 Piercing . | . . . . . . . . . . . . . . . . . Sneak Attacks 45 | . . . 11 . . 1 1 . . 3 4 7 5 12 . 1 Combat Hostiles . | . . . . . . . . . . . . . . . . . Follow-up Attacks 1 | . . . 1 . . . . . . . . . . . . . Damage Inflicted 11966 | . 340 17 1726 987 . 277 1429 1663 28 399 260 1081 415 1653 867 824 Guns 2131 | . 315 17 329 . . 104 1034 271 . . . . . 49 . 12 Cannons 3108 | . . . . . . . 331 1392 . 150 200 191 265 437 . 142 Explosions 2469 | . . . . 894 . . . . . . . 464 . 244 867 . Melee 4202 | . . . 1366 93 . 173 64 . 28 249 60 426 150 923 . 670 Ramming 25 | . 25 . . . . . . . . . . . . . . . Kinetic 4229 | . 203 17 62 . . 104 1365 1663 . 150 200 191 54 78 . 142 Thermal 1041 | . 112 . 298 . . . . . . . . . 211 408 . 12 Explosive 2469 | . . . . 894 . . . . . . . 464 . 244 867 . Electromagnetic . | . . . . . . . . . . . . . . . . . Impact 509 | . . . 359 . . . . . . . . . 150 . . . Slashing 3693 | . . . 1007 93 . 173 64 . 28 249 60 426 . 923 . 670 Piercing . | . . . . . . . . . . . . . . . . . Highest Corruption 26 | . . . 7 26 26 26 . . . . . . 2 2 2 2 Average Corruption 9 | . . . 6 15 26 26 . . . . . . 1 2 2 2 Corruption Purged . | . . . . . . . . . . . . . . . . . Corruption Blocked 2 | . . . . . . . . . . . . . 2 . . . Effects 109 | . . . 24 35 11 19 . . . . . . 3 6 6 5 Message Errors 27 | . . . 8 5 6 5 . . . . . . . 1 2 . Matter Fused 26 | . . . 2 10 3 6 . . . . . . . 1 1 3 Heat Flow Errors 12 | . . . 2 5 1 2 . . . . . . . 2 . . Energy Discharges 15 | . . . 5 5 1 1 . . . . . . 1 . 1 1 Parts Rejected 3 | . . . 1 . . . . . . . . . . 1 . 1 Parts Fused 4 | . . . 3 1 . . . . . . . . . . . . Data Loss (minor) 14 | . . . 1 8 . 2 . . . . . . 2 1 . . Data Loss (major) 4 | . . . 2 . . 1 . . . . . . . . 1 . Misfires 3 | . . . . 1 . 1 . . . . . . . . 1 . Weapon Failures 1 | . . . . . . 1 . . . . . . . . . . Overload Shots . | . . . . . . . . . . . . . . . . . Overflow Damage 612 | . 5 . 88 8 . . 34 40 . 10 20 65 118 191 16 17 Projectiles 48 | . . . . . . . . 40 . . . . 8 . . . Explosions 27 | . . . . 8 . . . . . . . 3 . . 16 . Melee 537 | . 5 . 88 . . . 34 . . 10 20 62 110 191 . 17 Knockbacks 15 | . . . 2 . . . 2 8 . 2 . . . . . 1 Impact 2 | . . . 2 . . . . . . . . . . . . . Kinetic 12 | . . . . . . . 2 7 . 2 . . . . . 1 Secondary 1 | . . . . . . . . 1 . . . . . . . . Self-Inflicted Damage 212 | . 12 . . 76 . . . . . . . 75 . . 49 . Shots 8 | . . . . 4 . . . . . . . 2 . . 2 . Rammed 1 | . 1 . . . . . . . . . . . . . . . Targets Rammed 1 | . 1 . . . . . . . . . . . . . . . Kicked . | . . . . . . . . . . . . . . . . . Crushed . | . . . . . . . . . . . . . . . . . Highest Temperature 428 | . 162 428 258 240 248 144 18 7 . 1 . . 192 203 . . Average Temperature 103 | . 68 204 108 105 129 73 7 6 . 1 . . 76 108 . . Received Heat Transfer 2116 | . 48 . 528 27 . . 324 415 18 243 96 174 114 84 45 . Effects 3 | . . 3 . . . . . . . . . . . . . . Interference 2 | . . 2 . . . . . . . . . . . . . . Short Circuit 1 | . . 1 . . . . . . . . . . . . . . Siege Activations . | . . . . . . . . . . . . . . . . . Robots Corrupted . | . . . . . . . . . . . . . . . . . Combat Hostiles . | . . . . . . . . . . . . . . . . . Parts Fried 11 | . . . 7 . . . . . . . . . 4 . . . Impact Corruptions 8 | . 1 . 4 . . . . . . . . . 3 . . . Robots Melted 1 | . . . 1 . . . . . . . . . . . . . Combat Hostiles 1 | . . . 1 . . . . . . . . . . . . . Parts Melted 8 | . . . 5 . . . . . . . . . 3 . . . Heat Transferred 2474 | . 250 . 1013 . . . . . . . . . 350 750 . 111 Parts Sabotaged . | . . . . . . . . . . . . . . . . . Parts Stolen . | . . . . . . . . . . . . . . . . . Parts Stripped . | . . . . . . . . . . . . . . . . . Power Chain Reactions . | . . . . . . . . . . . . . . . . . Missiles Intercepted . | . . . . . . . . . . . . . . . . . Alert | -11 -10 -10 -9 -9 -9 -8 -8 -8 -8 -8 -7 -7 -7 -7 -7 -7 ------- Run | Jun Mat Min Mat Min Exi Min Mat Gar Mat Gar Fac Gar Fac Low Low Dat Peak Influence 829 | . 210 81 292 357 . 120 383 829 465 508 295 218 203 . . . Initial 403 | . . 81 31 31 . . 46 248 403 302 266 88 114 . . . Average 264 | . 91 81 136 149 . 80 202 558 442 432 224 153 115 . . . Maximum Alert Level 3 | . 1 . 1 1 . . 1 3 2 2 1 1 1 . . . Low Security (%) 47 | . 82 100 83 66 . 100 46 . . . 28 65 95 . . . Level 1 26 | . 17 . 16 33 . . 53 21 . 26 71 34 4 . . . Level 2 24 | . . . . . . . . 65 100 73 . . . . . . Level 3 2 | . . . . . . . . 13 . . . . . . . . Level 4 . | . . . . . . . . . . . . . . . . . Level 5 . | . . . . . . . . . . . . . . . . . High Security . | . . . . . . . . . . . . . . . . . Max Security . | . . . . . . . . . . . . . . . . . Squads Dispatched 11 | . . . 3 . . . 4 . 1 . . . 3 . . . Investigation 2 | . . . . . . . 1 . . . . . 1 . . . Extermination . | . . . . . . . . . . . . . . . . . Reinforcement 6 | . . . 3 . . . 1 . 1 . . . 1 . . . Assault . | . . . . . . . . . . . . . . . . . Garrison 3 | . . . . . . . 2 . . . . . 1 . . . Intercept . | . . . . . . . . . . . . . . . . . Searches Triggered . | . . . . . . . . . . . . . . . . . Construction Impeded . | . . . . . . . . . . . . . . . . . Haulers Reinforced . | . . . . . . . . . . . . . . . . . Active Scanning Responses . | . . . . . . . . . . . . . . . . . Cargo Convoy Interrupts 1 | . . . . . . . . . . . . . 1 . . . Stealth | -11 -10 -10 -9 -9 -9 -8 -8 -8 -8 -8 -7 -7 -7 -7 -7 -7 --------- Run | Jun Mat Min Mat Min Exi Min Mat Gar Mat Gar Fac Gar Fac Low Low Dat Distress Signals 8 | . 1 . 1 . . . 2 . . . . . 4 . . . Communications Jammed . | . . . . . . . . . . . . . . . . . Distress Signals . | . . . . . . . . . . . . . . . . . Times Spotted 177 | . 9 3 25 13 . 6 24 42 2 10 5 9 12 6 8 3 Peak Tracking Total 13 | . 3 3 4 3 . 3 6 13 1 3 4 5 2 4 4 3 Tactical Retreats 12 | . . . . . . . 3 8 . . 1 . . . . . Traps | -11 -10 -10 -9 -9 -9 -8 -8 -8 -8 -8 -7 -7 -7 -7 -7 -7 ------- Run | Jun Mat Min Mat Min Exi Min Mat Gar Mat Gar Fac Gar Fac Low Low Dat Traps Triggered 15 | . . . 1 . . . 1 7 . 2 . 4 . . . . Indirectly . | . . . . . . . . . . . . . . . . . Trap Hack Attempts . | . . . . . . . . . . . . . . . . . Triggered . | . . . . . . . . . . . . . . . . . Disarmed . | . . . . . . . . . . . . . . . . . Reprogrammed 9 | . . . . . . . . . . . . . 9 . . . Reused 1 | . . . . . . . . . . . . . 1 . . . Traps Extracted . | . . . . . . . . . . . . . . . . . Installed . | . . . . . . . . . . . . . . . . . Triggered 3 | . . . . . . . . . . . . . 3 . . . Machines | -11 -10 -10 -9 -9 -9 -8 -8 -8 -8 -8 -7 -7 -7 -7 -7 -7 ---------- Run | Jun Mat Min Mat Min Exi Min Mat Gar Mat Gar Fac Gar Fac Low Low Dat Machines Disabled 8 | . . . . 3 . . . 1 . 3 . 1 . . . . Max in Single Turn 2 | . . . . 2 . . . 1 . 1 . 1 . . . . Garrison Relay 5 | . . . . . . . . 1 . 3 . 1 . . . . Machines Repaired . | . . . . . . . . . . . . . . . . . Machines Sabotaged . | . . . . . . . . . . . . . . . . . Overloaded Fab Kills . | . . . . . . . . . . . . . . . . . Hacking | -11 -10 -10 -9 -9 -9 -8 -8 -8 -8 -8 -7 -7 -7 -7 -7 -7 --------- Run | Jun Mat Min Mat Min Exi Min Mat Gar Mat Gar Fac Gar Fac Low Low Dat Machines Accessed 21 | . . 1 . . 1 . 4 1 1 3 1 1 3 . 1 4 Terminals 12 | . . 1 . . . . 3 1 . 3 . 1 2 . 1 . Fabricators 1 | . . . . . . . . . . . . . 1 . . . Repair Stations . | . . . . . . . . . . . . . . . . . Recycling Units . | . . . . . . . . . . . . . . . . . Scanalyzers . | . . . . . . . . . . . . . . . . . Garrison Access 3 | . . . . . . . 1 . 1 . 1 . . . . . Total Hacks 64 | . . 2 . . 1 . 7 2 1 4 1 1 13 . 1 31 Successful 48 | . . 1 . . 1 . 3 . 1 2 1 . 7 . 1 31 Failed 16 | . . 1 . . . . 4 2 . 2 . 1 6 . . . Catastrophic 5 | . . 1 . . . . . . . 1 . 1 2 . . . Database Lockouts . | . . . . . . . . . . . . . . . . . Manual 10 | . . 2 . . . . . . . . . . 8 . . . Terminals 28 | . . 2 . . . . 6 2 . 4 . 1 12 . 1 . Fabricators 1 | . . . . . . . . . . . . . 1 . . . Repair Stations . | . . . . . . . . . . . . . . . . . Recycling Units . | . . . . . . . . . . . . . . . . . Scanalyzers . | . . . . . . . . . . . . . . . . . Garrison Access 3 | . . . . . . . 1 . 1 . 1 . . . . . Terminal Hacks 43 | . . . . . 1 . 2 . . 2 . . 6 . 1 31 Record 13 | . . . . . 1 . . . . . . . . . 1 11 Part Schematic 11 | . . . . . . . . . . . . . . . . 11 Robot Schematic 6 | . . . . . . . . . . . . . . . . 6 Robot Analysis 1 | . . . . . . . 1 . . . . . . . . . Prototype ID Bank 3 | . . . . . . . . . . . . . . . . 3 Level Access Points 1 | . . . . . . . . . . . . . 1 . . . Branch Access Points 1 | . . . . . . . . . . . . . 1 . . . Emergency Access Points 1 | . . . . . . . . . . 1 . . . . . . Terminal Index 1 | . . . . . . . . . . . . . 1 . . . Reprogram Traps 2 | . . . . . . . . . . . . . 2 . . . Transport Status 1 | . . . . . . . . . . . . . 1 . . . Zone Layout 1 | . . . . . . . 1 . . . . . . . . . Garrison Registry 1 | . . . . . . . . . . 1 . . . . . . Fabricator Hacks 1 | . . . . . . . . . . . . . 1 . . . Build 1 | . . . . . . . . . . . . . 1 . . . Repair Station Hacks . | . . . . . . . . . . . . . . . . . Recycling Unit Hacks . | . . . . . . . . . . . . . . . . . Scanalyzer . | . . . . . . . . . . . . . . . . . Garrison Access Hacks 3 | . . . . . . . 1 . 1 . 1 . . . . . Unlock Access 3 | . . . . . . . 1 . 1 . 1 . . . . . Unauthorized Hacks 1 | . . 1 . . . . . . . . . . . . . . Terminals 1 | . . 1 . . . . . . . . . . . . . . Track 1 | . . 1 . . . . . . . . . . . . . . Fabricators . | . . . . . . . . . . . . . . . . . Repair Stations . | . . . . . . . . . . . . . . . . . Recycling Units . | . . . . . . . . . . . . . . . . . Scanalyzers . | . . . . . . . . . . . . . . . . . Garrison Access . | . . . . . . . . . . . . . . . . . Data Cores Recovered . | . . . . . . . . . . . . . . . . . Used . | . . . . . . . . . . . . . . . . . Hacking Detections 12 | . . 1 . . . . 4 1 . 3 . 1 2 . . . Full Trace Events . | . . . . . . . . . . . . . . . . . Feedback Events . | . . . . . . . . . . . . . . . . . Feedback Blocked . | . . . . . . . . . . . . . . . . . Robot Schematics Acquired 6 | . . . . . . . . . . . . . . . . 6 Robots Built 3 | . . . . . . . . . . . . . 3 . . . Authchips . | . . . . . . . . . . . . . . . . . Time 67 | . . . . . . . . . . . . . 67 . . . Total Robot Build Rating 12 | . . . . . . . . . . . . . 12 . . . Part Schematics Acquired 11 | . . . . . . . . . . . . . . . . 11 Parts Built . | . . . . . . . . . . . . . . . . . Authchips . | . . . . . . . . . . . . . . . . . Time . | . . . . . . . . . . . . . . . . . Total Part Build Rating . | . . . . . . . . . . . . . . . . . Parts Repaired . | . . . . . . . . . . . . . . . . . Time . | . . . . . . . . . . . . . . . . . Parts Recycled . | . . . . . . . . . . . . . . . . . Recycled Matter . | . . . . . . . . . . . . . . . . . Retrieved Matter . | . . . . . . . . . . . . . . . . . Retrieved Components . | . . . . . . . . . . . . . . . . . Parts Scanalyzed . | . . . . . . . . . . . . . . . . . Part Schematics Acquired . | . . . . . . . . . . . . . . . . . Parts Damaged . | . . . . . . . . . . . . . . . . . Bothacking | -11 -10 -10 -9 -9 -9 -8 -8 -8 -8 -8 -7 -7 -7 -7 -7 -7 ------------ Run | Jun Mat Min Mat Min Exi Min Mat Gar Mat Gar Fac Gar Fac Low Low Dat Used RIF Installer 3 | . . . . . . . . 1 . 1 . 1 . . . . Threat Obfuscator 1 | . . . . . . . . . . 1 . . . . . . Autooverride 1 | . . . . . . . . . . . . 1 . . . . Robots Hacked 15 | . . . . . . . . . . 3 3 4 5 . . . Non-combat 5 | . . . . . . . . . . . 2 . 3 . . . Combat 10 | . . . . . . . . . . 3 1 4 2 . . . Autooverrided 4 | . . . . . . . . . . . . 3 1 . . . Robot Hacks Applied 16 | . . . . . . . . . . 3 4 1 8 . . . parse_system 1 | . . . . . . . . . . . . . 1 . . . map_walls 1 | . . . . . . . . . . . . . 1 . . . drop_inventory 2 | . . . . . . . . . . . 1 . 1 . . . find_garrison 2 | . . . . . . . . . . . 1 . 1 . . . reboot_system 1 | . . . . . . . . . . . . . 1 . . . overwrite_iff 1 | . . . . . . . . . . . 1 . . . . . formatsys_low 3 | . . . . . . . . . . . 1 . 2 . . . formatsys_high 5 | . . . . . . . . . . 3 . 1 1 . . . Relay Couplers Released 21 | . . . . . . . . 5 . 12 . 4 . . . . Machine Destruction 21 | . . . . . . . . 5 . 12 . 4 . . . . Attached 8 | . . . . . . . . . 1 1 1 3 2 . . . Fabnet Peak Effective % . | . . . . . . . . . . . . . . . . . Robots Rewired . | . . . . . . . . . . . . . . . . . Allies Hacked . | . . . . . . . . . . . . . . . . . Hacks Repelled . | . . . . . . . . . . . . . . . . . Allies | -11 -10 -10 -9 -9 -9 -8 -8 -8 -8 -8 -7 -7 -7 -7 -7 -7 -------- Run | Jun Mat Min Mat Min Exi Min Mat Gar Mat Gar Fac Gar Fac Low Low Dat Total Allies 16 | . . . . 1 . . . . . 3 2 4 6 . . . Largest Group 4 | . . . . 1 1 . . . . 3 1 3 4 1 . . Highest-Rated Group 116 | . . . . 31 31 . . . . 61 23 55 116 26 . . Highest-Rated Ally 31 | . . . . 31 31 . . . . 29 23 23 30 26 . . Total Orders 3 | . . . . . . . . . . . 1 2 . . . . STAY 1 | . . . . . . . . . . . . 1 . . . . AID 2 | . . . . . . . . . . . 1 1 . . . . Ally Attacks 85 | . . . . . . . . . . 34 3 20 25 3 . . Total Damage 1308 | . . . . . . . . . . 508 31 280 431 58 . . Kills 13 | . . . . . . . . . . 4 . 2 7 . . . Allies Corrupted . | . . . . . . . . . . . . . . . . . Allies Melted . | . . . . . . . . . . . . . . . . . Intel | -11 -10 -10 -9 -9 -9 -8 -8 -8 -8 -8 -7 -7 -7 -7 -7 -7 ------- Run | Jun Mat Min Mat Min Exi Min Mat Gar Mat Gar Fac Gar Fac Low Low Dat Robot Analysis Total 132 | . . . . . . . 1 . . . . . . . . 131 Derelict Logs Recovered 2 | . . . . 1 . . . . . . . . . . 1 . Drone Launches . | . . . . . . . . . . . . . . . . . Drone Recoveries . | . . . . . . . . . . . . . . . . . Exploration | -11 -10 -10 -9 -9 -9 -8 -8 -8 -8 -8 -7 -7 -7 -7 -7 -7 ------------- Run | Jun Mat Min Mat Min Exi Min Mat Gar Mat Gar Fac Gar Fac Low Low Dat Turns Passed 9652 | . 326 162 976 954 260 350 617 1324 226 1124 562 672 684 491 623 301 Spaces Moved 4082 | 1 173 92 382 417 184 220 269 572 74 334 206 193 297 255 329 84 Core . | . . . . . . . . . . . . . . . . . Treads 799 | . . . 213 288 . . . 32 74 176 . 3 . 13 . . Legs 914 | 1 89 . . . . . . . . 158 77 140 221 . 144 84 Wheels 2369 | . 84 92 169 129 184 220 269 540 . . 129 50 76 242 185 . Hover . | . . . . . . . . . . . . . . . . . Flight . | . . . . . . . . . . . . . . . . . Fastest Speed 90 | 120 90 135 135 140 140 140 135 130 240 240 140 155 145 145 145 200 Average Speed 192 | 120 126 136 193 217 140 140 136 164 240 305 249 284 197 153 174 200 Slowest Speed 750 | 120 135 195 240 320 140 140 140 240 240 480 750 560 262 320 200 270 Overloaded Moves . | . . . . . . . . . . . . . . . . . Propulsion Burnouts . | . . . . . . . . . . . . . . . . . Robots Hopped . | . . . . . . . . . . . . . . . . . Cave-ins Triggered 1 | . . . . 1 . . . . . . . . . . . . Exploration Rate (%) 41 | 2 37 17 45 87 59 61 34 75 9 46 8 43 11 44 51 78 Regions Visited 16 Branch Regions 7 Pre-discovered Areas 28 | . . . . 2 . . . . . . . . . . . 26 Known Exits Taken 4 | . . . . . . . 1 . 1 . 1 . 1 . . . Unknown Exits Taken 9 | 1 1 1 1 1 1 1 . . . . . . . 1 1 . Scrap Searched 8 | . . 1 . 1 . . . . . . . . . 2 4 . Spaces Dug 34 | . . . . . . . 2 9 2 1 1 2 3 10 3 1 Terrain Destroyed 299 | . . . . 107 . . 6 11 2 1 1 15 3 24 127 2 Melee 23 | . . . . . . . 2 9 1 1 1 2 3 . 3 1 Projectile 9 | . . . . . . . 4 2 1 . . . . 1 . 1 AOE 267 | . . . . 107 . . . . . . . 13 . 23 124 . Terrain Rammed . | . . . . . . . . . . . . . . . . . Walls Destroyed . | . . . . . . . . . . . . . . . . . Machines Disabled . | . . . . . . . . . . . . . . . . . Actions | -11 -10 -10 -9 -9 -9 -8 -8 -8 -8 -8 -7 -7 -7 -7 -7 -7 --------- Run | Jun Mat Min Mat Min Exi Min Mat Gar Mat Gar Fac Gar Fac Low Low Dat Total 5172 | . 229 127 511 440 186 239 408 782 119 397 240 281 381 313 362 157 Wait 205 | . 13 31 18 . . 4 50 4 35 2 1 19 14 3 1 10 Move 4068 | . 172 91 381 415 183 219 269 571 74 333 206 192 296 254 328 84 Hop . | . . . . . . . . . . . . . . . . . Pick Up 87 | . 3 . 23 . 3 . 13 10 4 7 2 4 10 2 6 . Fast Attach 51 | . 4 1 9 . . . 5 8 . 4 3 5 3 8 1 . Attach 51 | . 1 1 6 4 . 2 2 11 . 2 1 3 4 4 4 6 Detach 6 | . . 1 . . . . . . . . 1 . 2 . 1 1 Swap 52 | . 1 . 6 2 . 1 3 5 1 3 5 5 10 4 1 5 Drop 65 | . 5 1 4 . . . 9 2 2 7 4 9 14 5 3 . Fire 292 | . 29 1 24 11 . 5 54 88 1 7 9 14 12 19 14 4 Melee 223 | . . . 40 7 . 8 3 37 2 28 7 14 13 14 3 47 Ram 1 | . 1 . . . . . . . . . . . . . . . Kick . | . . . . . . . . . . . . . . . . . Crush . | . . . . . . . . . . . . . . . . . Escape Stasis 64 | . . . . 1 . . . 46 . 2 . 15 . . . . Rewire 7 | . . . . . . . . . . 2 1 1 3 . . . Trap . | . . . . . . . . . . . . . . . . . Miscellaneous . | . . . . . . . . . . . . . . . . . Route ------- -11/Junkyard -10/Materials (discovered 3 exits: [*Mat] / *Min x2) -10/Mines -9/Materials (discovered 3 exits: *Mat / [*Min x2]) -9/Mines (discovered 3 exits: *Mat x2 / *Exi) -9/Exiles -8/Mines -8/Materials (discovered 2 exits: [*Sto] / Gar) -8/Garrison (discovered 3 exits: *Mat x3) -8/Materials -8/Garrison (discovered 3 exits: *Fac x3) -7/Factory (discovered 2 exits: *Low / Gar) -7/Garrison -7/Factory (discovered 6 exits: Fac x4 / *Low x2) -7/Lower Caves -7/Lower Caves -7/Data Miner (discovered 1 exit: [*Pro]) History --------- Turn | Location | Event 1 | -11/Junkyard | Discovered new exit (range 0) 1 | -11/Junkyard | Entered Materials 45 | -10/Materials | Discovered new exit (range 13) 70 | -10/Materials | Discovered new exit (range 5) 134 | -10/Materials | Discovered new exit (range 16) 304 | -10/Materials | Build established: Mutant 327 | -10/Materials | Entered Mines 354 | -10/Mines | Found a damaged Exp. Sensor Array with a note attached 357 | -10/Mines | Found Prototype Device 357 | -10/Mines | Identified Exp. Sensor Array 384 | -10/Mines | Assembled infested the area 475 | -10/Mines | Discovered new exit (range 11) 489 | -10/Mines | Entered Materials 489 | -9/Materials | Evolved 2 slots: Propulsion x1, Utility x1 628 | -9/Materials | Lost 4 parts (1n3w) 875 | -9/Materials | Build established: Scavenger-Mutant 917 | -9/Materials | Lost 3 parts (2n1w) 1235 | -9/Materials | Discovered new exit (range 7) 1283 | -9/Materials | Discovered new exit (range 16) 1429 | -9/Materials | Discovered new exit (range 15) 1465 | -9/Materials | Entered Mines 1466 | -9/Mines | Learned location of Storage (-8) 1476 | -9/Mines | Met a Derelict bent on vengeance 1528 | -9/Mines | Discovered new exit (range 7) 1798 | -9/Mines | System corruption reached 10% 1852 | -9/Mines | Core integrity fell below 50% 2028 | -9/Mines | Escorted by a lone wolf Derelict 2087 | -9/Mines | Crushed by falling debris 2111 | -9/Mines | Build established: Mutant 2118 | -9/Mines | Lost 3 parts (2n1w) 2325 | -9/Mines | Discovered new exit (range 10) 2414 | -9/Mines | Deemed a non-threat by the Exiles lab entrance 2414 | -9/Mines | Discovered new exit (range 5) 2419 | -9/Mines | Entered Exiles 2419 | -9/Exiles | Found Exiles lab abandoned 2419 | -9/Exiles | Accompanied by 1 ally 2666 | -9/Exiles | Discovered new exit (range 11) 2679 | -9/Exiles | Entered Mines 2693 | -8/Mines | Core integrity fell below 20% 3022 | -8/Mines | Discovered new exit (range 6) 3029 | -8/Mines | Entered Materials 3029 | -8/Materials | Evolved 2 slots: Propulsion x1, Utility x1 3446 | -8/Materials | Discovered new exit (range 4) 3505 | -8/Materials | Build established: Scavenger-Mutant 3546 | -8/Materials | Garrison activated, responded to threat 3646 | -8/Materials | Identified exit to Garrison 3646 | -8/Materials | Entered Garrison 3718 | -8/Garrison | Triggered checkpoint 3768 | -8/Garrison | Triggered checkpoint 3829 | -8/Garrison | Lost 3 parts (1n2u) 3876 | -8/Garrison | Triggered checkpoint 4056 | -8/Garrison | Discovered new exit (range 10) 4146 | -8/Garrison | Assembled breached garrison interior 4201 | -8/Garrison | Core integrity fell below 50% 4237 | -8/Garrison | Lost 8 parts (1p4n1u2w) 4507 | -8/Garrison | Discovered new exit (range 9) 4734 | -8/Garrison | Installed Relay Interface Framework 4791 | -8/Garrison | Garrison Relay disabled 4949 | -8/Garrison | Discovered new exit (range 10) 4970 | -8/Garrison | Entered Materials 5196 | -8/Materials | Identified exit to Garrison 5196 | -8/Materials | Entered Garrison 5268 | -8/Garrison | Triggered checkpoint 5355 | -8/Garrison | Expanded RIF knowledge: Threat Obfuscation 5374 | -8/Garrison | Garrison Relay disabled 5560 | -8/Garrison | Build established: Bothacker-Mutant 5582 | -8/Garrison | Garrison Relay disabled 5738 | -8/Garrison | Triggered checkpoint 5746 | -8/Garrison | Triggered checkpoint 5796 | -8/Garrison | Triggered checkpoint 5964 | -8/Garrison | Triggered checkpoint 5998 | -8/Garrison | Garrison Relay disabled 6130 | -8/Garrison | Discovered new exit (range 3) 6250 | -8/Garrison | Discovered new exit (range 55) 6250 | -8/Garrison | Discovered new exit (range 72) 6250 | -8/Garrison | Discovered new exit (range 15) 6320 | -8/Garrison | Entered Factory 6320 | -7/Factory | Evolved 2 slots: Utility x2 6498 | -7/Factory | Discovered new exit (range 15) 6882 | -7/Factory | Identified exit to Garrison 6882 | -7/Factory | Entered Garrison 6882 | -7/Garrison | Accompanied by 1 ally 6893 | -7/Garrison | Expanded RIF knowledge: Autooverride 7012 | -7/Garrison | Triggered checkpoint 7074 | -7/Garrison | Garrison Relay disabled 7306 | -7/Garrison | Triggered checkpoint 7499 | -7/Garrison | Discovered new exit (range 15) 7554 | -7/Garrison | Entered Factory 7716 | -7/Factory | Fabricated L-41 Fighter? 7826 | -7/Factory | Identified exit to Factory 7954 | -7/Factory | Identified exit to Lower Caves 8005 | -7/Factory | P-60 Hacker assimilated allied Administrator 4a 8185 | -7/Factory | Cargo convoy interrupted 8204 | -7/Factory | Garrison activated, responded to threat 8238 | -7/Factory | Entered Lower Caves 8238 | -7/Lower Caves | Accompanied by 1 ally 8247 | -7/Lower Caves | Attracted the attention of an 0b10 checkpoint 8359 | -7/Lower Caves | Spotted B-75 Beast 8409 | -7/Lower Caves | Core integrity fell below 50% 8411 | -7/Lower Caves | Destroyed B-75 Beast 8439 | -7/Lower Caves | Lost 6 parts (1p1n3u1w) 8561 | -7/Lower Caves | Encountered a Warlord checkpoint 8672 | -7/Lower Caves | Discovered new exit (range 9) 8729 | -7/Lower Caves | Entered another Lower Caves area 8732 | -7/Lower Caves | Learned Factory stockpile data 9268 | -7/Lower Caves | Discovered new exit (range 10) 9352 | -7/Lower Caves | Entered Data Miner 9352 | -7/Data Miner | Discovered new exit (range 7) 9390 | -7/Data Miner | Met Data Miner 9444 | -7/Data Miner | Acquired the access code to Warlord's prototype stash 9444 | -7/Data Miner | Learned location of Section 7 (-2) 9462 | -7/Data Miner | Received God Mode back door access code from Data Miner 9478 | -7/Data Miner | Interfaced with the Data Conduit 9628 | -7/Data Miner | Core integrity fell below 20% 9653 | -7/Data Miner | Destroyed by Enhanced Grunt with Neutron Cannon Last Messages --------------- 09580_ Slug penetrates Enhanced Grunt. 09580_ Enhanced Grunt suffers critical hit (Burn). 09582_ Hvy. Laser destroyed. 09583_ Enhanced Grunt knocked back. 09587_ Slug penetrates Enhanced Grunt. 09587_ Enhanced Grunt Adv. Particle Charger blasted off. 09592_ Lgt. Deuterium Engine destroyed. 09605_ Lgt. Treads destroyed. 09606_ Enhanced Grunt Lyr. Medium Armor Plating severed. 09618_ Med. Reactive Plating destroyed. 09618_ Enhanced Grunt destroyed. 09619_ Acquired 69 matter. 09620_ System corrupted: Coolant Injector rejected. 09620_ Mak. Sword destroyed. 09622_ Adv. Heat Sink destroyed. 09632_ Enhanced Grunt Lyr. Medium Armor Plating severed. 09642_ Imp. Titanium Leg destroyed. 09642_ Adv. Treads destroyed. 09642_ Enhanced Grunt destroyed. 09649_ Arm. Treads destroyed. Map ----- +----------------------------------------------------+ | | | | | | | | | | | | | | | | | | | ??????????????????????????????? | | ??????????????????????????????? | | ??????????????????????????????? | | ??????????????????????????????? | | ??????????????????????????????? | | ????#################?????????? | | ???##"""""""""""""""######????? | | ??## """"""" """"""""###### | | ?## "" """""" | | ?#" """ "" | | ?## """" " | | ??# """"" | | ??# """""" | | ??# """" " """"""" | | ??#%"""!""" """"##### | | ??##%"%"""" """""###???? | | ???#!g@!% """ "#####?????? | | ???###!#####"## "#?????????? | | ?????##!???#"### "#?????????? | | ???????#???#"### "#?????????? | | ???????????#"## "#?????????? | | ???????????#"## "#?????????? | | ?????????????# "#?????????? | | ?????????????### "#?????????? | | ???????????????# "##????????? | | ??????????????## ""#????????? | | ???????????#?## ""#????????? | | ??????????##"#"X ""#????????? | | ??????????""""" "####?????? | | ??????????""""" X"""""?????? | | ??????????##"#"X "##"#?????? | | ???????????#?## X""""#?????? | | ??????????????## "##"#?????? | | ???????????????#######????????? | | ??????????????????????????????? | | ??????????????????????????????? | | ??????????????????????????????? | | ??????????????????????????????? | | ??????????????????????????????? | | ??????????????????????????????? | | ??????????????????????????????? | +----------------------------------------------------+ Best States ------------- Heat Dissipation 69 Coolant Potential 65 Energy Generation 18 Energy Capacity 310 Matter Stores 300 Matter Capacity 300 Sight Range 20 Terrain Scan Density 85 Armor Coverage 375 Resistance: KI 30 Core Shielding 20 Evasion (%) 55 Targeting Accuracy 5 Melee Accuracy 5 Recoil Reduction 4 Particle Charging 15 Offensive Hacking 10 Defensive Hacking 10 Relay Coupler Types 3 Relay Coupler Value 120 Item Schematics ----------------- Combat Drone Bay | -7/Data Miner | Free Lgt. Regenerative Plating | -7/Data Miner | Free Cld. Aerolev Unit | -7/Data Miner | Free Cld. Plasma Cannon | -7/Data Miner | Free Gravity Neutralizer | -7/Data Miner | Free Cmb. Gravmag System | -7/Data Miner | Free Point Defense System | -7/Data Miner | Free Wave Gun | -7/Data Miner | Free Gyrokinetic Inverter | -7/Data Miner | Free Imp. Kinecellerator | -7/Data Miner | Free Lgt. Antimatter Reactor | -7/Data Miner | Free Robot Schematics ------------------ B-48 Gladiator | -7/Data Miner | Free L-41 Fighter | -7/Data Miner | Free Y-54 Guardian | -7/Data Miner | Free M-22 Extractor | -7/Data Miner | Free B-60 Warrior | -7/Data Miner | Free G-50 Soldier | -7/Data Miner | Free Fabricated ------------ L-41 Fighter | x3 | -7/Factory | Preloaded Alien Tech Used ----------------- None Achievements -------------- None Challenges ------------ None Game ------ Seed BurstAlloyRegenerator Manual? 0 Play Time 00:59:25 Cumulative 426.2 hours Start 2023.04.29 @ 19:36:12 End 2023.04.29 @ 21:07:01 Sessions 3 Manual Loads 0 Difficulty Rogue Special Mode None Game No. 463 Rogue 463 Adventurer 0 Explorer 0 Win Type - Total 12 Types 8/0/3/1/0/0/0/0/0 Lore% 82 Gallery% 90 Achievement% 80 Wizard Run 0 Options --------- ASCII 0 Keyboard 0 Movement Numpad Keybinds 0 Fullscreen 1 Font 18/Terminus Map View 76x50 Tactical HUD 1 Map Filters NONE Filters NONE Steam 1 RUN: 6861fed3-12ad-4fa2-a91e-49f773e1365f